Workbook

Sheet Earned Value Management
B1: EARNED VALUE MANAGEMENT TEMPLATE
B3: PROJECT TITLE | C3: Project Title Here | G3: PREPARED BY | H3: Name of PM or Other Preparer | K3: DATE OF REPORT | L3: 00/00/0000 | N3: TIME PERIOD | O3: 4
B4: PLANNED VALUE – WBS IDs and Task Titles listed here will automatically populate on worksheet tabs.
B5: WORK BRKDWN STRUCTURE | C5: TASK TITLE | D5: TOTAL BUDGETED COST | E5: PERIOD
E6: 1 | F6: 2 | G6: 3 | H6: 4 | I6: 5 | J6: 6 | K6: 7 | L6: 8 | M6: 9 | N6: 10 | O6: 11 | P6: 12
B7: 1.1 | C7: Task 1.1 | D7: =SUM(E7:P7) -> 1258 | E7: 300 | F7: 500 | G7: 400 | H7: 50 | I7: 1 | J7: 1 | K7: 1 | L7: 1 | M7: 1 | N7: 1 | O7: 1 | P7: 1
B8: 1.2 | C8: Task 1.2 | D8: =SUM(E8:P8) -> 350 | E8: 200 | F8: 80 | G8: 30 | H8: 40 | I8: 0 | J8: 0 | K8: 0 | L8: 0 | M8: 0 | N8: 0 | O8: 0 | P8: 0
B9: 1.3 | C9: Task 1.3 | D9: 0 | E9: 0 | F9: 0 | G9: 0 | H9: 0 | I9: 0 | J9: 0 | K9: 0 | L9: 0 | M9: 0 | N9: 0 | O9: 0 | P9: 0
B10: 1.4 | C10: Task 1.4 | D10: 0 | E10: 0 | F10: 0 | G10: 0 | H10: 0 | I10: 0 | J10: 0 | K10: 0 | L10: 0 | M10: 0 | N10: 0 | O10: 0 | P10: 0
B11: 2.1 | C11: Task 2.1 | D11: 0 | E11: 0 | F11: 0 | G11: 0 | H11: 0 | I11: 0 | J11: 0 | K11: 0 | L11: 0 | M11: 0 | N11: 0 | O11: 0 | P11: 0
B12: 2.2 | C12: Task 2.2 | D12: 0 | E12: 0 | F12: 0 | G12: 0 | H12: 0 | I12: 0 | J12: 0 | K12: 0 | L12: 0 | M12: 0 | N12: 0 | O12: 0 | P12: 0
B13: 2.3 | C13: Task 2.3 | D13: 0 | E13: 0 | F13: 0 | G13: 0 | H13: 0 | I13: 0 | J13: 0 | K13: 0 | L13: 0 | M13: 0 | N13: 0 | O13: 0 | P13: 0
B14: 2.4 | C14: Task 2.4 | D14: 0 | E14: 0 | F14: 0 | G14: 0 | H14: 0 | I14: 0 | J14: 0 | K14: 0 | L14: 0 | M14: 0 | N14: 0 | O14: 0 | P14: 0
B15: 2.5 | C15: Task 2.5 | D15: 0 | E15: 0 | F15: 0 | G15: 0 | H15: 0 | I15: 0 | J15: 0 | K15: 0 | L15: 0 | M15: 0 | N15: 0 | O15: 0 | P15: 0
B16: 3.1 | C16: Task 3.1 | D16: 0 | E16: 0 | F16: 0 | G16: 0 | H16: 0 | I16: 0 | J16: 0 | K16: 0 | L16: 0 | M16: 0 | N16: 0 | O16: 0 | P16: 0
B17: 3.2 | C17: Task 3.2 | D17: 0 | E17: 0 | F17: 0 | G17: 0 | H17: 0 | I17: 0 | J17: 0 | K17: 0 | L17: 0 | M17: 0 | N17: 0 | O17: 0 | P17: 0
B18: 3.3 | C18: Task 3.3 | D18: 0 | E18: 0 | F18: 0 | G18: 0 | H18: 0 | I18: 0 | J18: 0 | K18: 0 | L18: 0 | M18: 0 | N18: 0 | O18: 0 | P18: 0
B19: 3.4 | C19: Task 3.4 | D19: 0 | E19: 0 | F19: 0 | G19: 0 | H19: 0 | I19: 0 | J19: 0 | K19: 0 | L19: 0 | M19: 0 | N19: 0 | O19: 0 | P19: 0
B20: 3.5 | C20: Task 3.5 | D20: 0 | E20: 0 | F20: 0 | G20: 0 | H20: 0 | I20: 0 | J20: 0 | K20: 0 | L20: 0 | M20: 0 | N20: 0 | O20: 0 | P20: 0
B21: 3.6 | C21: Task 3.6 | D21: 0 | E21: 0 | F21: 0 | G21: 0 | H21: 0 | I21: 0 | J21: 0 | K21: 0 | L21: 0 | M21: 0 | N21: 0 | O21: 0 | P21: 0
B22: 3.7 | C22: Task 3.7 | D22: 0 | E22: 0 | F22: 0 | G22: 0 | H22: 0 | I22: 0 | J22: 0 | K22: 0 | L22: 0 | M22: 0 | N22: 0 | O22: 0 | P22: 0
B23: 4.1 | C23: Task 4.1 | D23: 0 | E23: 0 | F23: 0 | G23: 0 | H23: 0 | I23: 0 | J23: 0 | K23: 0 | L23: 0 | M23: 0 | N23: 0 | O23: 0 | P23: 0
B24: 4.2 | C24: Task 4.2 | D24: 0 | E24: 0 | F24: 0 | G24: 0 | H24: 0 | I24: 0 | J24: 0 | K24: 0 | L24: 0 | M24: 0 | N24: 0 | O24: 0 | P24: 0
B25: 4.3 | C25: Task 4.3 | D25: 0 | E25: 0 | F25: 0 | G25: 0 | H25: 0 | I25: 0 | J25: 0 | K25: 0 | L25: 0 | M25: 0 | N25: 0 | O25: 0 | P25: 0
B26: 4.4 | C26: Task 4.4 | D26: 0 | E26: 0 | F26: 0 | G26: 0 | H26: 0 | I26: 0 | J26: 0 | K26: 0 | L26: 0 | M26: 0 | N26: 0 | O26: 0 | P26: 0
B27: TBC | C27: TOTAL BUDGETED COST | D27: =SUM(D7:D26) -> 1608 | E27: =SUM(E7:E26) -> 500 | F27: =SUM(F7:F26) -> 580 | G27: 430 | H27: 90 | I27: 1 | J27: 1 | K27: 1 | L27: 1 | M27: 1 | N27: 1 | O27: 1 | P27: 1
B28: PV | C28: CUMLATIVE PLANNED VALUE | E28: =E27 -> 500 | F28: =E28+F27 -> 1080 | G28: =F28+G27 -> 1510 | H28: 1600 | I28: 1601 | J28: 1602 | K28: 1603 | L28: 1604 | M28: 1605 | N28: 1606 | O28: 1607 | P28: =O28+P27 -> 1608
B29: ACTUAL COST
B30: AC | C30: CUMULATIVE ACTUAL COST | E30: ='Actual Cost Worksheet'!E28 -> 900 | F30: ='Actual Cost Worksheet'!F28 -> 1220 | G30: ='Actual Cost Worksheet'!G28 -> 1480 | H30: ='Actual Cost Worksheet'!H28 -> 1620 | I30: ='Actual Cost Worksheet'!I28 -> 1621 | J30: ='Actual Cost Worksheet'!J28 -> 1622 | K30: ='Actual Cost Worksheet'!K28 -> 1623 | L30: ='Actual Cost Worksheet'!L28 -> 1624 | M30: ='Actual Cost Worksheet'!M28 -> 1625 | N30: ='Actual Cost Worksheet'!N28 -> 1626 | O30: ='Actual Cost Worksheet'!O28 -> 1627 | P30: ='Actual Cost Worksheet'!P28 -> 1628
B31: EARNED VALUE
B32: EV | C32: CUMULATIVE EARNED VALUE | E32: ='Earned Value Worksheet'!E27 -> 1356.4 | F32: ='Earned Value Worksheet'!F27 -> 1230.6 | G32: ='Earned Value Worksheet'!G27 -> 1363 | H32: ='Earned Value Worksheet'!H27 -> 520.7 | I32: ='Earned Value Worksheet'!I27 -> 125.8 | J32: ='Earned Value Worksheet'!J27 -> 125.8 | K32: ='Earned Value Worksheet'!K27 -> 125.8 | L32: ='Earned Value Worksheet'!L27 -> 125.8 | M32: ='Earned Value Worksheet'!M27 -> 125.8 | N32: ='Earned Value Worksheet'!N27 -> 125.8 | O32: ='Earned Value Worksheet'!O27 -> 125.8 | P32: ='Earned Value Worksheet'!P27 -> 125.8
B33: PROJECT PERFORMANCE METRICS
B34: CV | C34: COST VARIANCE | D34: ( EV – AC ) | E34: =E32-E30 -> 456.4 | F34: =F32-F30 -> 10.6 | G34: -117 | H34: -1099.3 | I34: -1495.2 | J34: -1496.2 | K34: -1497.2 | L34: -1498.2 | M34: -1499.2 | N34: -1500.2 | O34: -1501.2 | P34: -1502.2
B35: SV | C35: SCHEDULE VARIANCE | D35: ( EV – PV ) | E35: =E32-E28 -> 856.4 | F35: =F32-F28 -> 150.6 | G35: -147 | H35: -1079.3 | I35: -1475.2 | J35: -1476.2 | K35: -1477.2 | L35: -1478.2 | M35: -1479.2 | N35: -1480.2 | O35: -1481.2 | P35: -1482.2
B36: CPI | C36: COST PERFORMANCE INDEX | D36: ( EV / AC ) | E36: =E32/E30 -> 1.507111111 | F36: =F32/F30 -> 1.008688525 | G36: 0.9209459459 | H36: 0.3214197531 | I36: 0.07760641579 | J36: 0.07755856967 | K36: 0.0775107825 | L36: 0.07746305419 | M36: 0.07741538462 | N36: 0.07736777368 | O36: 0.07732022127 | P36: 0.07727272727
B37: SPI | C37: SCHEDULE PERFORMANCE INDEX | D37: ( EV / PV ) | E37: =E32/E28 -> 2.7128 | F37: =F32/F28 -> 1.139444444 | G37: 0.9026490066 | H37: 0.3254375 | I37: 0.07857589007 | J37: 0.07852684145 | K37: 0.07847785402 | L37: 0.07842892768 | M37: 0.07838006231 | N37: 0.07833125778 | O37: 0.078282514 | P37: 0.07823383085
B38: EAC | C38: ESTIMATED COST AT COMPLETION | E38: =D27/E36 -> 1066.941905 | F38: =D27/F36 -> 1594.149196 | G38: =D27/G36 -> 1746.030814 | H38: =D27/H36 -> 5002.803918 | I38: =D27/I36 -> 20719.93641 | J38: =D27/J36 -> 20732.7186 | K38: =D27/K36 -> 20745.50079 | L38: =D27/L36 -> 20758.28299 | M38: =D27/M36 -> 20771.06518 | N38: =D27/N36 -> 20783.84738 | O38: =D27/O36 -> 20796.62957 | P38: =D27/P36 -> 20809.41176
C40: CLICK HERE TO CREATE EARNED VALUE MANAGEMENT TEMPLATES IN SMARTSHEET

Sheet Actual Cost Worksheet
B1: EARNED VALUE MANAGEMENT TEMPLATE
B3: PROJECT TITLE | C3: ='Earned Value Management'!C3:F3 -> Project Title Here | G3: PREPARED BY | H3: ='Earned Value Management'!H3:J3 -> Name of PM or Other Preparer | K3: DATE OF REPORT | L3: ='Earned Value Management'!L3:M3 -> 00/00/0000 | N3: TIME PERIOD | O3: ='Earned Value Management'!O3:P3 -> 4
B4: ACTUAL COST – Enter amount of actual costs incurred for each task per period.
B5: WORK BRKDWN STRUCTURE | C5: TASK TITLE | D5: TOTAL BUDGETED COST | E5: PERIOD
E6: 1 | F6: 2 | G6: 3 | H6: 4 | I6: 5 | J6: 6 | K6: 7 | L6: 8 | M6: 9 | N6: 10 | O6: 11 | P6: 12
B7: ='Earned Value Management'!B7 -> 1.1 | C7: ='Earned Value Management'!C7 -> Task 1.1 | D7: ='Earned Value Management'!D7 -> 1258 | E7: 100 | F7: 300 | G7: 200 | H7: 100 | I7: 1 | J7: 1 | K7: 1 | L7: 1 | M7: 1 | N7: 1 | O7: 1 | P7: 1
B8: ='Earned Value Management'!B8 -> 1.2 | C8: ='Earned Value Management'!C8 -> Task 1.2 | D8: ='Earned Value Management'!D8 -> 350 | E8: 800 | F8: 20 | G8: 60 | H8: 40 | I8: 0 | J8: 0 | K8: 0 | L8: 0 | M8: 0 | N8: 0 | O8: 0 | P8: 0
B9: ='Earned Value Management'!B9 -> 1.3 | C9: ='Earned Value Management'!C9 -> Task 1.3 | D9: ='Earned Value Management'!D9 -> 0 | E9: 0 | F9: 0 | G9: 0 | H9: 0 | I9: 0 | J9: 0 | K9: 0 | L9: 0 | M9: 0 | N9: 0 | O9: 0 | P9: 0
B10: ='Earned Value Management'!B10 -> 1.4 | C10: ='Earned Value Management'!C10 -> Task 1.4 | D10: ='Earned Value Management'!D10 -> 0 | E10: 0 | F10: 0 | G10: 0 | H10: 0 | I10: 0 | J10: 0 | K10: 0 | L10: 0 | M10: 0 | N10: 0 | O10: 0 | P10: 0
B11: ='Earned Value Management'!B11 -> 2.1 | C11: ='Earned Value Management'!C11 -> Task 2.1 | D11: ='Earned Value Management'!D11 -> 0 | E11: 0 | F11: 0 | G11: 0 | H11: 0 | I11: 0 | J11: 0 | K11: 0 | L11: 0 | M11: 0 | N11: 0 | O11: 0 | P11: 0
B12: ='Earned Value Management'!B12 -> 2.2 | C12: ='Earned Value Management'!C12 -> Task 2.2 | D12: ='Earned Value Management'!D12 -> 0 | E12: 0 | F12: 0 | G12: 0 | H12: 0 | I12: 0 | J12: 0 | K12: 0 | L12: 0 | M12: 0 | N12: 0 | O12: 0 | P12: 0
B13: ='Earned Value Management'!B13 -> 2.3 | C13: ='Earned Value Management'!C13 -> Task 2.3 | D13: ='Earned Value Management'!D13 -> 0 | E13: 0 | F13: 0 | G13: 0 | H13: 0 | I13: 0 | J13: 0 | K13: 0 | L13: 0 | M13: 0 | N13: 0 | O13: 0 | P13: 0
B14: ='Earned Value Management'!B14 -> 2.4 | C14: ='Earned Value Management'!C14 -> Task 2.4 | D14: ='Earned Value Management'!D14 -> 0 | E14: 0 | F14: 0 | G14: 0 | H14: 0 | I14: 0 | J14: 0 | K14: 0 | L14: 0 | M14: 0 | N14: 0 | O14: 0 | P14: 0
B15: ='Earned Value Management'!B15 -> 2.5 | C15: ='Earned Value Management'!C15 -> Task 2.5 | D15: ='Earned Value Management'!D15 -> 0 | E15: 0 | F15: 0 | G15: 0 | H15: 0 | I15: 0 | J15: 0 | K15: 0 | L15: 0 | M15: 0 | N15: 0 | O15: 0 | P15: 0
B16: ='Earned Value Management'!B16 -> 3.1 | C16: ='Earned Value Management'!C16 -> Task 3.1 | D16: ='Earned Value Management'!D16 -> 0 | E16: 0 | F16: 0 | G16: 0 | H16: 0 | I16: 0 | J16: 0 | K16: 0 | L16: 0 | M16: 0 | N16: 0 | O16: 0 | P16: 0
B17: ='Earned Value Management'!B17 -> 3.2 | C17: ='Earned Value Management'!C17 -> Task 3.2 | D17: ='Earned Value Management'!D17 -> 0 | E17: 0 | F17: 0 | G17: 0 | H17: 0 | I17: 0 | J17: 0 | K17: 0 | L17: 0 | M17: 0 | N17: 0 | O17: 0 | P17: 0
B18: ='Earned Value Management'!B18 -> 3.3 | C18: ='Earned Value Management'!C18 -> Task 3.3 | D18: ='Earned Value Management'!D18 -> 0 | E18: 0 | F18: 0 | G18: 0 | H18: 0 | I18: 0 | J18: 0 | K18: 0 | L18: 0 | M18: 0 | N18: 0 | O18: 0 | P18: 0
B19: ='Earned Value Management'!B19 -> 3.4 | C19: ='Earned Value Management'!C19 -> Task 3.4 | D19: ='Earned Value Management'!D19 -> 0 | E19: 0 | F19: 0 | G19: 0 | H19: 0 | I19: 0 | J19: 0 | K19: 0 | L19: 0 | M19: 0 | N19: 0 | O19: 0 | P19: 0
B20: ='Earned Value Management'!B20 -> 3.5 | C20: ='Earned Value Management'!C20 -> Task 3.5 | D20: ='Earned Value Management'!D20 -> 0 | E20: 0 | F20: 0 | G20: 0 | H20: 0 | I20: 0 | J20: 0 | K20: 0 | L20: 0 | M20: 0 | N20: 0 | O20: 0 | P20: 0
B21: ='Earned Value Management'!B21 -> 3.6 | C21: ='Earned Value Management'!C21 -> Task 3.6 | D21: ='Earned Value Management'!D21 -> 0 | E21: 0 | F21: 0 | G21: 0 | H21: 0 | I21: 0 | J21: 0 | K21: 0 | L21: 0 | M21: 0 | N21: 0 | O21: 0 | P21: 0
B22: ='Earned Value Management'!B22 -> 3.7 | C22: ='Earned Value Management'!C22 -> Task 3.7 | D22: ='Earned Value Management'!D22 -> 0 | E22: 0 | F22: 0 | G22: 0 | H22: 0 | I22: 0 | J22: 0 | K22: 0 | L22: 0 | M22: 0 | N22: 0 | O22: 0 | P22: 0
B23: ='Earned Value Management'!B23 -> 4.1 | C23: ='Earned Value Management'!C23 -> Task 4.1 | D23: ='Earned Value Management'!D23 -> 0 | E23: 0 | F23: 0 | G23: 0 | H23: 0 | I23: 0 | J23: 0 | K23: 0 | L23: 0 | M23: 0 | N23: 0 | O23: 0 | P23: 0
B24: ='Earned Value Management'!B24 -> 4.2 | C24: ='Earned Value Management'!C24 -> Task 4.2 | D24: ='Earned Value Management'!D24 -> 0 | E24: 0 | F24: 0 | G24: 0 | H24: 0 | I24: 0 | J24: 0 | K24: 0 | L24: 0 | M24: 0 | N24: 0 | O24: 0 | P24: 0
B25: ='Earned Value Management'!B25 -> 4.3 | C25: ='Earned Value Management'!C25 -> Task 4.3 | D25: ='Earned Value Management'!D25 -> 0 | E25: 0 | F25: 0 | G25: 0 | H25: 0 | I25: 0 | J25: 0 | K25: 0 | L25: 0 | M25: 0 | N25: 0 | O25: 0 | P25: 0
B26: ='Earned Value Management'!B26 -> 4.4 | C26: ='Earned Value Management'!C26 -> Task 4.4 | D26: ='Earned Value Management'!D26 -> 0 | E26: 0 | F26: 0 | G26: 0 | H26: 0 | I26: 0 | J26: 0 | K26: 0 | L26: 0 | M26: 0 | N26: 0 | O26: 0 | P26: 0
B27: AC | C27: ACTUAL COST | E27: =SUM(E7:E26) -> 900 | F27: =SUM(F7:F26) -> 320 | G27: 260 | H27: 140 | I27: 1 | J27: 1 | K27: 1 | L27: 1 | M27: 1 | N27: 1 | O27: 1 | P27: 1
C28: CUMULATIVE ACTUAL COST | E28: =E27 -> 900 | F28: =E28+F27 -> 1220 | G28: =F28+G27 -> 1480 | H28: 1620 | I28: 1621 | J28: 1622 | K28: 1623 | L28: 1624 | M28: 1625 | N28: 1626 | O28: 1627 | P28: 1628

Sheet Earned Value Worksheet
B1: EARNED VALUE MANAGEMENT TEMPLATE
B3: PROJECT TITLE | C3: ='Earned Value Management'!C3:F3 -> Project Title Here | G3: PREPARED BY | H3: ='Earned Value Management'!H3:J3 -> Name of PM or Other Preparer | K3: DATE OF REPORT | L3: ='Earned Value Management'!L3:M3 -> 00/00/0000 | N3: TIME PERIOD | O3: ='Earned Value Management'!O3:P3 -> 4
B4: CUMULATIVE EARNED VALUE – For each Task per Period, enter the Percentage Complete.
B5: WORK BRKDWN STRUCTURE | C5: TASK TITLE | D5: TOTAL BUDGETED COST | E5: PERIOD
E6: 1 | F6: 2 | G6: 3 | H6: 4 | I6: 5 | J6: 6 | K6: 7 | L6: 8 | M6: 9 | N6: 10 | O6: 11 | P6: 12
B7: ='Earned Value Management'!B7 -> 1.1 | C7: ='Earned Value Management'!C7 -> Task 1.1 | D7: ='Earned Value Management'!D7 -> 1258 | E7: 0.8 | F7: 0.7 | G7: 1 | H7: 0.4 | I7: 0.1 | J7: 0.1 | K7: 0.1 | L7: 0.1 | M7: 0.1 | N7: 0.1 | O7: 0.1 | P7: 0.1
B8: ='Earned Value Management'!B8 -> 1.2 | C8: ='Earned Value Management'!C8 -> Task 1.2 | D8: ='Earned Value Management'!D8 -> 350 | E8: 1 | F8: 1 | G8: 0.3 | H8: 0.05 | I8: 0 | J8: 0 | K8: 0 | L8: 0 | M8: 0 | N8: 0 | O8: 0 | P8: 0
B9: ='Earned Value Management'!B9 -> 1.3 | C9: ='Earned Value Management'!C9 -> Task 1.3 | D9: ='Earned Value Management'!D9 -> 0 | E9: 0 | F9: 0 | G9: 0 | H9: 0 | I9: 0 | J9: 0 | K9: 0 | L9: 0 | M9: 0 | N9: 0 | O9: 0 | P9: 0
B10: ='Earned Value Management'!B10 -> 1.4 | C10: ='Earned Value Management'!C10 -> Task 1.4 | D10: ='Earned Value Management'!D10 -> 0 | E10: 0 | F10: 0 | G10: 0 | H10: 0 | I10: 0 | J10: 0 | K10: 0 | L10: 0 | M10: 0 | N10: 0 | O10: 0 | P10: 0
B11: ='Earned Value Management'!B11 -> 2.1 | C11: ='Earned Value Management'!C11 -> Task 2.1 | D11: ='Earned Value Management'!D11 -> 0 | E11: 0 | F11: 0 | G11: 0 | H11: 0 | I11: 0 | J11: 0 | K11: 0 | L11: 0 | M11: 0 | N11: 0 | O11: 0 | P11: 0
B12: ='Earned Value Management'!B12 -> 2.2 | C12: ='Earned Value Management'!C12 -> Task 2.2 | D12: ='Earned Value Management'!D12 -> 0 | E12: 0 | F12: 0 | G12: 0 | H12: 0 | I12: 0 | J12: 0 | K12: 0 | L12: 0 | M12: 0 | N12: 0 | O12: 0 | P12: 0
B13: ='Earned Value Management'!B13 -> 2.3 | C13: ='Earned Value Management'!C13 -> Task 2.3 | D13: ='Earned Value Management'!D13 -> 0 | E13: 0 | F13: 0 | G13: 0 | H13: 0 | I13: 0 | J13: 0 | K13: 0 | L13: 0 | M13: 0 | N13: 0 | O13: 0 | P13: 0
B14: ='Earned Value Management'!B14 -> 2.4 | C14: ='Earned Value Management'!C14 -> Task 2.4 | D14: ='Earned Value Management'!D14 -> 0 | E14: 0 | F14: 0 | G14: 0 | H14: 0 | I14: 0 | J14: 0 | K14: 0 | L14: 0 | M14: 0 | N14: 0 | O14: 0 | P14: 0
B15: ='Earned Value Management'!B15 -> 2.5 | C15: ='Earned Value Management'!C15 -> Task 2.5 | D15: ='Earned Value Management'!D15 -> 0 | E15: 0 | F15: 0 | G15: 0 | H15: 0 | I15: 0 | J15: 0 | K15: 0 | L15: 0 | M15: 0 | N15: 0 | O15: 0 | P15: 0
B16: ='Earned Value Management'!B16 -> 3.1 | C16: ='Earned Value Management'!C16 -> Task 3.1 | D16: ='Earned Value Management'!D16 -> 0 | E16: 0 | F16: 0 | G16: 0 | H16: 0 | I16: 0 | J16: 0 | K16: 0 | L16: 0 | M16: 0 | N16: 0 | O16: 0 | P16: 0
B17: ='Earned Value Management'!B17 -> 3.2 | C17: ='Earned Value Management'!C17 -> Task 3.2 | D17: ='Earned Value Management'!D17 -> 0 | E17: 0 | F17: 0 | G17: 0 | H17: 0 | I17: 0 | J17: 0 | K17: 0 | L17: 0 | M17: 0 | N17: 0 | O17: 0 | P17: 0
B18: ='Earned Value Management'!B18 -> 3.3 | C18: ='Earned Value Management'!C18 -> Task 3.3 | D18: ='Earned Value Management'!D18 -> 0 | E18: 0 | F18: 0 | G18: 0 | H18: 0 | I18: 0 | J18: 0 | K18: 0 | L18: 0 | M18: 0 | N18: 0 | O18: 0 | P18: 0
B19: ='Earned Value Management'!B19 -> 3.4 | C19: ='Earned Value Management'!C19 -> Task 3.4 | D19: ='Earned Value Management'!D19 -> 0 | E19: 0 | F19: 0 | G19: 0 | H19: 0 | I19: 0 | J19: 0 | K19: 0 | L19: 0 | M19: 0 | N19: 0 | O19: 0 | P19: 0
B20: ='Earned Value Management'!B20 -> 3.5 | C20: ='Earned Value Management'!C20 -> Task 3.5 | D20: ='Earned Value Management'!D20 -> 0 | E20: 0 | F20: 0 | G20: 0 | H20: 0 | I20: 0 | J20: 0 | K20: 0 | L20: 0 | M20: 0 | N20: 0 | O20: 0 | P20: 0
B21: ='Earned Value Management'!B21 -> 3.6 | C21: ='Earned Value Management'!C21 -> Task 3.6 | D21: ='Earned Value Management'!D21 -> 0 | E21: 0 | F21: 0 | G21: 0 | H21: 0 | I21: 0 | J21: 0 | K21: 0 | L21: 0 | M21: 0 | N21: 0 | O21: 0 | P21: 0
B22: ='Earned Value Management'!B22 -> 3.7 | C22: ='Earned Value Management'!C22 -> Task 3.7 | D22: ='Earned Value Management'!D22 -> 0 | E22: 0 | F22: 0 | G22: 0 | H22: 0 | I22: 0 | J22: 0 | K22: 0 | L22: 0 | M22: 0 | N22: 0 | O22: 0 | P22: 0
B23: ='Earned Value Management'!B23 -> 4.1 | C23: ='Earned Value Management'!C23 -> Task 4.1 | D23: ='Earned Value Management'!D23 -> 0 | E23: 0 | F23: 0 | G23: 0 | H23: 0 | I23: 0 | J23: 0 | K23: 0 | L23: 0 | M23: 0 | N23: 0 | O23: 0 | P23: 0
B24: ='Earned Value Management'!B24 -> 4.2 | C24: ='Earned Value Management'!C24 -> Task 4.2 | D24: ='Earned Value Management'!D24 -> 0 | E24: 0 | F24: 0 | G24: 0 | H24: 0 | I24: 0 | J24: 0 | K24: 0 | L24: 0 | M24: 0 | N24: 0 | O24: 0 | P24: 0
B25: ='Earned Value Management'!B25 -> 4.3 | C25: ='Earned Value Management'!C25 -> Task 4.3 | D25: ='Earned Value Management'!D25 -> 0 | E25: 0 | F25: 0 | G25: 0 | H25: 0 | I25: 0 | J25: 0 | K25: 0 | L25: 0 | M25: 0 | N25: 0 | O25: 0 | P25: 0
B26: ='Earned Value Management'!B26 -> 4.4 | C26: ='Earned Value Management'!C26 -> Task 4.4 | D26: ='Earned Value Management'!D26 -> 0 | E26: 0 | F26: 0 | G26: 0 | H26: 0 | I26: 0 | J26: 0 | K26: 0 | L26: 0 | M26: 0 | N26: 0 | O26: 0 | P26: 0
B27: EV | C27: CUMULATIVE EARNED VALUE | E27: =SUMPRODUCT(E7:E26,$D$7:$D$26) -> 1356.4 | F27: 1230.6 | G27: 1363 | H27: 520.7 | I27: 125.8 | J27: 125.8 | K27: =SUMPRODUCT(K7:K26,$D$7:$D$26) -> 125.8 | L27: 125.8 | M27: 125.8 | N27: 125.8 | O27: 125.8 | P27: 125.8
